Workbook

Sheet KORTTI
B1: Ulla Tuominen | E1: 21.12.1952
B2: SUPERPESIS | E2: Runkosarja | I2: Kärkilyönnit (KL), pesänvälit | P2: Ylempi loppusarja | U2: Alempi loppusarja | Z2: Arvo-ottelut ja mitalit | AF2: Runkosarjan jälkeen
B3: Vuosi | C3: Sija | D3: Seura | E3: OTT | F3: KUN | G3: LÖI | H3: TOI | I3: KL | J3: 0 > 1 | K3: 1 > 2 | L3: 2 > 3 | M3: 3 > k | N3: KL-% | P3: OTT | Q3: KUN | R3: LÖI | S3: TOI | T3: KL | U3: OTT | V3: KUN | W3: LÖI | X3: TOI | Y3: KL | Z3: IL | AA3: LL | AB3: Cup | AC3: K | AD3: H | AE3: P
B4: 1982 | C4: 6. | D4: Manse PP | E4: 18 | F4: 1 | G4: 8 | H4: 15 | I4: 56 | J4: 15 | K4: 10 | L4: 22 | M4: 9 | N4: 45.9 % | O4: 122
B5: 1983 | C5: 3. | D5: Manse PP | E5: 18 | F5: 0 | G5: 4 | H5: 15 | I5: 42 | J5: 10 | K5: 16 | L5: 12 | M5: 4 | N5: 47.2 % | O5: 89 | AE5: 1
B6: 1984 | C6: 1. | D6: Manse PP | E6: 18 | F6: 1 | G6: 4 | H6: 19 | I6: 60 | J6: 17 | K6: 27 | L6: 11 | M6: 5 | N6: 51.3 % | O6: 117 | AC6: 1
B7: 1985 | C7: 3. | D7: Manse PP | E7: 18 | F7: 0 | G7: 8 | H7: 8 | I7: 45 | J7: 15 | K7: 12 | L7: 10 | M7: 8 | N7: 39.1 % | O7: 115 | AE7: 1
B8: 1986 | C8: 8. | D8: Manse PP | E8: 18 | F8: 0 | G8: 6 | H8: 18 | I8: 57 | J8: 21 | K8: 18 | L8: 12 | M8: 6 | N8: ---- | O8: 0
B9: 1987 | C9: 6. | D9: Manse PP | E9: 18 | F9: 0 | G9: 9 | H9: 17 | I9: 50 | J9: 15 | K9: 14 | L9: 12 | M9: =PRODUCT(F9+G9) -> 9 | N9: ---- | O9: 0
B10: 1988 | C10: 5. | D10: Manse PP | E10: 11 | F10: 0 | G10: 6 | H10: 5 | I10: 39 | J10: 14 | K10: 8 | L10: 11 | M10: =PRODUCT(F10+G10) -> 6 | N10: ---- | O10: 0
B11: 1989 | D11: YPa | F11: ykkössarja | O11: 0
B12: 1990 | C12: 12. | D12: Manse PP | E12: 16 | F12: 0 | G12: 4 | H12: 8 | I12: 31 | J12: 10 | K12: 8 | L12: 9 | M12: =SUM(F12+G12) -> 4 | N12: 35.6 % | O12: =PRODUCT(I12/N12) -> 87.07865169
B13: Yhteensä | E13: =SUM(E4:E12) -> 135 | F13: 2 | G13: 49 | H13: 105 | I13: 380 | J13: 117 | K13: 113 | L13: 99 | M13: 51 | N13: =PRODUCT(234/O13) -> 44.1 % | O13: =SUM(O4:O12) -> 530.0786517 | P13: 0 | Q13: 0 | R13: 0 | S13: 0 | T13: 0 | U13: 0 | V13: 0 | W13: 0 | X13: 0 | Y13: 0 | Z13: 0 | AA13: 0 | AB13: 0 | AC13: 1 | AD13: 0 | AE13: 2
B14: Pesispörssi | D14: =SUM(F13:H13)+((I13-F13-G13)/3)+(E13/3)+(Z13*25)+(AA13*25)+(AB13*10)+(AC13*25)+(AD13*20)+(AE13*15) -> 365.7
B16: URA SUPERISSA | E16: OTT | F16: KUN | G16: LÖI | H16: TOI | I16: KL | K16: ka/L | L16: ka/T | M16: ka/KL | N16: K - % | P16: ENSIMMÄISET
B17: Runkosarja | E17: =PRODUCT(E13) -> 135 | F17: =PRODUCT(F13) -> 2 | G17: =PRODUCT(G13) -> 49 | H17: =PRODUCT(H13) -> 105 | I17: =PRODUCT(I13) -> 380 | K17: =PRODUCT((F17+G17)/E17) -> 0.38 | L17: =PRODUCT(H17/E17) -> 0.78 | M17: =PRODUCT(I17/E17) -> 2.81 | N17: =PRODUCT(N13) -> 44.1 % | O17: =PRODUCT(O13) -> 530.0786517 | P17: Ottelu | S17: 09.05. 1982 LäPa - Manse PP 13-3 | AB17: 1. ottelu | AF17: 29 v 4 kk 18 pv
B18: Ylempi loppusarja | P18: Lyöty juoksu | S18: 23.05. 1982 Manse PP - ViU 9-6 | AB18: 4. ottelu | AF18: 29 v 5 kk 2 pv
B19: Alempi loppusarja | P19: Tuotu juoksu | S19: 16.05. 1982 Manse PP - Kiri 5-7 | AB19: 2. ottelu | AF19: 29 v 4 kk 25 pv
B20: KAIKKI | E20: =SUM(E17:E19) -> 135 | F20: =SUM(F17:F19) -> 2 | G20: =SUM(G17:G19) -> 49 | H20: =SUM(H17:H19) -> 105 | I20: =SUM(I17:I19) -> 380 | K20: =PRODUCT((F20+G20)/E20) -> 0.38 | L20: =PRODUCT(H20/E20) -> 0.78 | M20: =PRODUCT(I20/E20) -> 2.81 | N20: 44.1 % | O20: =SUM(O17:O19) -> 530.0786517 | P20: Kunnari | S20: 17.07. 1982 Manse PP- Tahko 17-21 | AB20: 11. ottelu | AF20: 29 v 6 kk 26 pv
B22: Seurat | D22: Manse PP = Mansen Pesäpallo, Tampere (1978)
D23: YPa = Ylöjärven Pallo (1960)
